fUSD/lending_fUSD_20250716
["ID","MTS","AMOUNT","RATE_DAILY","PERIOD"]
[372423046,1752639032796,-237.093172,0.00021612,8]
[372423047,1752639032805,-2514.95640318,0.00021624,5]
[372423048,1752639032814,-569.0,0.0002163,2]
[372423049,1752639032823,-806.0,0.00021631,2]
[372423050,1752639032833,-1267.0,0.00021631,2]
[372423051,1752639032842,-475.0,0.00021671,2]
[372423052,1752639032851,-2514.95640318,0.00021728,5]
[372423053,1752639032860,-414.47,0.00021742,2]
[372423054,1752639032870,-569.0,0.00021773,2]
[372423055,1752639032879,-475.0,0.00021786,2]
[372423056,1752639032888,-150.0,0.00021787,2]
[372423057,1752639032898,-150.0,0.0002179,2]
[372423058,1752639032907,-150.0,0.000218,2]
[372423059,1752639032916,-5000.0,0.00021817,2]
[372423060,1752639032925,-186.6787065,0.00021817,2]
[372423061,1752639032935,-176.42720627,0.00021817,2]
[372423062,1752639032944,-150.0,0.0002182,2]
[372423063,1752639032953,-210.72748344,0.00021825,2]
[372423064,1752639032963,-150.0,0.00021825,2]
[372423065,1752639032972,-447.87393831,0.00021828,2]
[372423066,1752639032981,-838.7287696,0.00021828,2]
[372423067,1752639032991,-2514.95640318,0.00021831,6]
[372423068,1752639033001,-150.0,0.00021842,2]
[372423069,1752639033011,-569.0,0.00021842,2]
[372423070,1752639033021,-151.3438009,0.00021848,2]
[372423071,1752639033031,-150.0,0.00021868,2]
[372423072,1752639033041,-150.0,0.00021871,2]
[372423073,1752639033051,-206.57015618,0.00021877,2]
[372423074,1752639033061,-11339.0,0.00021899,2]
[372423075,1752639033071,-1182.69,0.000219,2]
[372423076,1752639033080,-239.0,0.000219,2]
[372423077,1752639033091,-378.0,0.000219,2]
[372423078,1752639033100,-773.0,0.000219,2]
[372423079,1752639033110,-478.14,0.00021907,2]
[372423080,1752639033120,-224.01345879,0.00021907,2]
[372423081,1752639033130,-1730.8,0.00021908,2]
[372423082,1752639033140,-150.0,0.00021912,2]
[372423083,1752639033149,-460.0,0.00021917,2]
[372423084,1752639033158,-460.0,0.00021917,2]
[372423085,1752639033168,-355.17137964,0.00021917,2]
[372423086,1752639033177,-460.0,0.00021917,2]
[372423087,1752639033187,-460.0,0.00021917,2]
[372423088,1752639033197,-392.96775433,0.00021917,2]
[372423089,1752639033206,-151.066744,0.00021917,2]
[372423090,1752639033215,-460.0,0.00021917,2]
[372423091,1752639033225,-460.68772913,0.00021917,2]
[372423092,1752639033235,-460.0,0.00021917,2]
[372423093,1752639033246,-462.90354761,0.00021917,2]
[372423094,1752639033255,-460.0,0.00021917,2]
[372423095,1752639033265,-555.63180062,0.00021917,2]
[372423096,1752639033275,-460.0,0.00021917,2]
[372423097,1752639033284,-460.0,0.00021917,2]
[372423098,1752639033294,-460.0,0.00021917,2]
[372423099,1752639033303,-460.0,0.00021917,2]
[372423100,1752639033312,-500.0,0.00021917,2]
[372423101,1752639033322,-500.0,0.00021917,2]
[372423102,1752639033331,-514.22,0.00021917,2]
[372423103,1752639033341,-595.79240012,0.00021917,2]
[372423104,1752639033351,-460.0,0.00021917,2]
[372423105,1752639033360,-460.0,0.00021917,2]
[372423106,1752639033369,-460.0,0.00021917,2]
[372423107,1752639033379,-460.0,0.00021917,2]
[372423108,1752639033389,-460.0,0.00021917,2]
[372423109,1752639033398,-465.86863681,0.00021917,2]
[372423110,1752639033408,-343.03299485,0.00021917,2]
[372423111,1752639033417,-460.0,0.00021917,2]
[372423112,1752639033426,-460.0,0.00021917,2]
[372423113,1752639033436,-460.0,0.00021917,2]
[372423114,1752639033446,-460.0,0.00021917,2]
[372423115,1752639033456,-460.0,0.00021917,2]
[372423116,1752639033465,-460.0,0.00021917,2]
[372423117,1752639033475,-1053.14,0.00021917,2]
[372423118,1752639033485,-460.0,0.00021917,2]
[372423119,1752639033496,-392.68090092,0.00021917,2]
[372423120,1752639033506,-460.0,0.00021917,2]
[372423121,1752639033519,-460.0,0.00021917,2]
[372423122,1752639033528,-461.65676377,0.00021917,2]
[372423123,1752639033538,-959.63,0.00021917,2]
[372423124,1752639033548,-226.71784456,0.00021917,2]
[372423125,1752639033558,-460.0,0.00021917,2]
[372423126,1752639033568,-460.0,0.00021917,2]
[372423127,1752639033577,-459.60681306,0.00021917,2]
[372423128,1752639033587,-460.0,0.00021917,2]
[372423129,1752639033598,-340.0,0.00021917,2]
[372423130,1752639033608,-460.0,0.00021917,2]
[372423131,1752639033617,-460.0,0.00021917,2]
[372423132,1752639033626,-460.0,0.00021917,2]
[372423133,1752639033636,-543.84131379,0.00021917,2]
[372423134,1752639033645,-493.03493162,0.00021917,2]
[372423135,1752639033655,-460.0,0.00021917,2]
[372423136,1752639033665,-460.0,0.00021917,2]
[372423137,1752639033675,-460.0,0.00021917,2]
[372423138,1752639033685,-561.95,0.00021917,2]
[372423139,1752639033694,-151.0,0.00021917,2]
[372423140,1752639033704,-460.7156946,0.00021917,2]
[372423141,1752639033715,-160.312001,0.00021917,2]
[372423142,1752639033724,-655.08,0.00021917,2]
[372423143,1752639033734,-460.0,0.00021917,2]
[372423144,1752639033743,-460.0,0.00021917,2]
[372423145,1752639033753,-151.0,0.00021917,2]
[372423146,1752639033762,-460.0,0.00021917,2]
[372423147,1752639033771,-490.0,0.00021917,2]
[372423148,1752639033781,-907.53,0.00021917,2]
[372423149,1752639033790,-151.0,0.00021917,2]
[372423150,1752639033799,-151.0,0.00021917,2]
[372423151,1752639033809,-460.0,0.00021917,2]
[372423152,1752639033819,-460.0,0.00021917,2]
[372423153,1752639033828,-460.0,0.00021917,2]
[372423154,1752639033838,-460.0,0.00021917,2]
[372423155,1752639033847,-460.0,0.00021917,2]
[372423156,1752639033857,-572.12164358,0.00021917,2]
[372423157,1752639033867,-1538.99,0.00021917,2]
[372423158,1752639033877,-659.68,0.00021917,2]
[372423159,1752639033887,-460.0,0.00021917,2]
[372423160,1752639033897,-460.0,0.00021917,2]
[372423161,1752639033907,-655.29,0.00021917,2]
[372423162,1752639033917,-460.0,0.00021917,2]
[372423163,1752639033927,-460.0,0.00021917,2]
[372423164,1752639033937,-460.0,0.00021917,2]
[372423165,1752639033947,-460.0,0.00021917,2]
[372423166,1752639033957,-499.19,0.00021917,2]
[372423167,1752639033967,-459.46283553,0.00021917,2]
[372423168,1752639033977,-460.0,0.00021917,2]
[372423169,1752639033987,-912.72,0.00021917,2]
[372423170,1752639033996,-460.0,0.00021917,2]
[372423171,1752639034006,-471.99,0.00021917,2]
[372423172,1752639034015,-978.39,0.00021917,2]
[372423173,1752639034025,-460.0,0.00021917,2]
[372423174,1752639034035,-460.0,0.00021917,2]
[372423175,1752639034044,-1092.17,0.00021917,2]
[372423176,1752639034053,-151.781455,0.00021917,2]
[372423177,1752639034063,-460.0,0.00021917,2]
[372423178,1752639034072,-461.45034173,0.00021917,2]
[372423179,1752639034082,-460.0,0.00021917,2]
[372423180,1752639034091,-460.0,0.00021917,2]
[372423181,1752639034100,-194.1977872,0.00021917,2]
[372423182,1752639034110,-460.0,0.00021917,2]
[372423183,1752639034119,-460.0,0.00021917,2]
[372423184,1752639034128,-1186.03,0.00021917,2]
[372423185,1752639034138,-460.0,0.00021917,2]
[372423186,1752639034147,-460.0,0.00021917,2]
[372423187,1752639034157,-926.46,0.00021917,2]
[372423188,1752639034166,-535.81,0.00021917,2]
[372423189,1752639034176,-461.15431251,0.00021917,2]
[372423190,1752639034186,-590.45,0.00021917,2]
[372423191,1752639034195,-541.47561774,0.00021917,2]
[372423192,1752639034205,-460.0,0.00021917,2]
[372423193,1752639034214,-180.079111,0.00021917,2]
[372423194,1752639034224,-460.0,0.00021917,2]
[372423195,1752639034233,-460.0,0.00021917,2]
[372423196,1752639034243,-460.0,0.00021917,2]
[372423197,1752639034253,-800.96,0.00021917,2]
[372423198,1752639034263,-460.0,0.00021917,2]
[372423199,1752639034272,-798.19,0.00021917,2]
[372423200,1752639034282,-460.0,0.00021917,2]
[372423201,1752639034291,-460.0,0.00021917,2]
[372423202,1752639034301,-851.62,0.00021917,2]
[372423203,1752639034310,-460.0,0.00021917,2]
[372423204,1752639034322,-162.144144,0.00021917,2]
[372423205,1752639034332,-1696.124456,0.00021917,2]
[372423206,1752639034342,-158.098854,0.00021917,2]
[372423207,1752639034352,-225.016026,0.00021917,2]
[372423208,1752639034363,-463.03389735,0.00021917,2]
[372423209,1752639034372,-2978.513972,0.00021917,2]
[372423210,1752639034382,-460.73077877,0.00021917,2]
[372423211,1752639034392,-460.0,0.00021917,2]
[372423212,1752639034401,-462.78390641,0.00021917,2]
[372423213,1752639034411,-460.0,0.00021917,2]
[372423214,1752639034421,-303.46589984,0.00021917,2]
[372423215,1752639034462,-156.53410016,0.00021917,2]
[372423216,1752639034472,-460.0,0.00021917,2]
[372423217,1752639034482,-1995.15199777,0.00021917,2]
[372423218,1752639037835,-2007.88202823,0.00021917,2]
[372423219,1752639037844,-460.0,0.00021917,2]
[372423220,1752639037854,-460.0,0.00021917,2]
[372423221,1752639037863,-460.0,0.00021917,2]
[372423222,1752639037872,-708.63,0.00021917,2]
[372423223,1752639037881,-460.0,0.00021917,2]
[372423224,1752639037891,-460.0,0.00021917,2]
[372423225,1752639037900,-460.0,0.00021917,2]
[372423226,1752639037909,-460.0,0.00021917,2]
[372423227,1752639037919,-515.32,0.00021917,2]
[372423228,1752639037928,-151.0,0.00021917,2]
[372423229,1752639037937,-151.0,0.00021917,2]
[372423230,1752639037946,-460.0,0.00021917,2]
[372423231,1752639037955,-1357.39,0.00021917,2]
[372423232,1752639037965,-460.0,0.00021917,2]
[372423233,1752639037975,-460.0,0.00021917,2]
[372423234,1752639037984,-460.0,0.00021917,2]
[372423235,1752639037994,-460.0,0.00021917,2]
[372423236,1752639038005,-501.85,0.00021917,2]
[372423237,1752639038013,-151.0,0.00021917,2]
[372423238,1752639038022,-460.0,0.00021917,2]
[372423239,1752639038031,-209.148344,0.00021917,2]
[372423240,1752639038039,-460.0,0.00021917,2]
[372423241,1752639038049,-151.0,0.00021917,2]
[372423242,1752639038058,-1581.45,0.00021917,2]
[372423243,1752639038067,-460.0,0.00021917,2]
[372423244,1752639038077,-151.0,0.00021917,2]
[372423245,1752639038086,-1201.99,0.00021917,2]
[372423246,1752639038096,-151.0,0.00021917,2]
[372423247,1752639038105,-460.0,0.00021917,2]
[372423248,1752639038115,-153.660606,0.00021917,2]
[372423249,1752639038124,-460.0,0.00021917,2]
[372423250,1752639038133,-460.0,0.00021917,2]
[372423252,1752639038142,-460.0,0.00021917,2]
[372423254,1752639038151,-151.0,0.00021917,2]
[372423256,1752639038161,-491.01984688,0.00021917,2]
[372423258,1752639038170,-152.128453,0.00021917,2]
[372423260,1752639038179,-460.0,0.00021917,2]
[372423262,1752639038188,-460.0,0.00021917,2]
[372423264,1752639038198,-460.0,0.00021917,2]
[372423266,1752639038207,-526.3,0.00021917,2]
[372423268,1752639038217,-460.0,0.00021917,2]
[372423270,1752639038227,-460.0,0.00021917,2]
[372423272,1752639038237,-460.0,0.00021917,2]
[372423274,1752639038248,-460.12,0.00021917,2]
[372423276,1752639038258,-460.0,0.00021917,2]
[372423277,1752639038267,-905.56,0.00021917,2]
[372423279,1752639038276,-463.30412357,0.00021917,2]
[372423281,1752639038286,-236.17295737,0.00021917,2]
[372423286,1752639038323,-223.82704263,0.00021917,2]
[372423288,1752639038332,-401.74361822,0.00021917,2]
[372423291,1752639038345,-225.28638178,0.00021917,2]
[372423293,1752639038354,-460.0,0.00021917,2]
[372423295,1752639038363,-10.73295737,0.00021917,2]
[372423447,1752639039932,-423.19939893,0.00021917,2]
[372423453,1752639039984,-26.0676437,0.00021917,2]
[372423455,1752639039993,-460.0,0.00021917,2]
[372423457,1752639040004,-460.91060732,0.00021917,2]
[372423459,1752639040014,-160.897181,0.00021917,2]
[372423461,1752639040023,-500.0,0.00021917,2]
[372423463,1752639040032,-250.0,0.00021917,2]
[372423465,1752639040041,-213.29128716,0.00021917,2]
[372423467,1752639040051,-500.0,0.00021917,2]
[372423469,1752639040060,-154.024945,0.00021917,2]
[372423471,1752639040070,-486.26,0.00021917,2]
[372423473,1752639040079,-500.0,0.00021917,2]
[372423475,1752639040088,-76.31112069,0.00021917,2]
[372423478,1752639040112,-233.58887931,0.00021917,2]
[372423480,1752639040121,-173.49852049,0.00021917,2]
[372423764,1752639042974,-286.50147951,0.00021917,2]
[372423766,1752639042984,-460.0,0.00021917,2]
[372423768,1752639042993,-460.0,0.00021917,2]
[372423770,1752639043005,-460.0,0.00021917,2]
[372423772,1752639043014,-415.43292133,0.00021917,2]
[372423774,1752639043025,-84.56707867,0.00021917,2]
[372423776,1752639043035,-460.0,0.00021917,2]
[372423778,1752639043044,-460.0,0.00021917,2]
[372423780,1752639043054,-487.81714803,0.00021917,2]
[372423807,1752639043294,-12.18285197,0.00021917,2]
[372423809,1752639043303,-271.4600409,0.00021917,2]
[372423875,1752639045825,-5000.0,0.00021817,2]
[372423876,1752639045834,-228.5399591,0.00021917,2]
[372423877,1752639045843,-500.0,0.00021917,2]
[372423878,1752639045852,-151.0,0.00021917,2]
[372423879,1752639045861,-151.0,0.00021917,2]
[372423880,1752639045870,-151.0,0.00021917,2]
[372423881,1752639045879,-152.929818,0.00021917,2]
[372423882,1752639045888,-460.0,0.00021917,2]
[372423883,1752639045897,-587.94,0.00021917,2]
[372423884,1752639045906,-460.0,0.00021917,2]
[372423885,1752639045915,-462.55579065,0.00021917,2]
[372423886,1752639045924,-151.0,0.00021917,2]
[372423887,1752639045934,-460.0,0.00021917,2]
[372423888,1752639045943,-460.0,0.00021917,2]
[372423889,1752639045952,-151.0,0.00021917,2]
[372423890,1752639045962,-460.0,0.00021917,2]
[372423891,1752639045971,-151.0,0.00021917,2]
[372423892,1752639045980,-151.0,0.00021917,2]
[372423893,1752639045990,-156.293986,0.00021917,2]
[372423894,1752639046010,-460.0,0.00021917,2]
[372423895,1752639046019,-460.0,0.00021917,2]
[372423896,1752639046028,-461.7384769,0.00021917,2]
[372423897,1752639046037,-460.0,0.00021917,2]
[372423898,1752639046047,-460.0,0.00021917,2]
[372423899,1752639046056,-460.0,0.00021917,2]
[372423900,1752639046065,-1345.88,0.00021917,2]
[372423901,1752639046075,-460.0,0.00021917,2]
[372423902,1752639046084,-1224.68,0.00021917,2]
[372423903,1752639046093,-460.0,0.00021917,2]
[372423904,1752639046102,-460.0,0.00021917,2]
[372423905,1752639046112,-490.93412639,0.00021917,2]
[372423906,1752639046121,-460.0,0.00021917,2]
[372423907,1752639046131,-460.0,0.00021917,2]
[372423908,1752639046140,-451.26767718,0.00021917,2]
[372423909,1752639046149,-460.61955559,0.00021917,2]
[372423910,1752639046159,-1092.53,0.00021917,2]
[372423911,1752639046169,-525.43,0.00021917,2]
[372423912,1752639046178,-549.04,0.00021917,2]
[372423913,1752639046188,-460.0,0.00021917,2]
[372423914,1752639046197,-460.0,0.00021917,2]
[372423915,1752639046207,-2135.69,0.00021917,2]
[372423916,1752639046216,-462.71227759,0.00021917,2]
[372423917,1752639046226,-460.0,0.00021917,2]
[372423918,1752639046235,-460.0,0.00021917,2]
[372423919,1752639046243,-460.0,0.00021917,2]
[372423920,1752639046254,-460.0,0.00021917,2]
[372423921,1752639046264,-505.77,0.00021917,2]
[372423922,1752639046273,-460.0,0.00021917,2]
[372423923,1752639046283,-500.0,0.00021917,2]
[372423924,1752639046292,-500.0,0.00021917,2]
[372423925,1752639046302,-460.0,0.00021917,2]
[372423926,1752639046311,-460.0,0.00021917,2]
[372423927,1752639046322,-460.0,0.00021917,2]
[372423928,1752639046331,-461.67057084,0.00021917,2]
[372423929,1752639046342,-460.0,0.00021917,2]
[372423930,1752639046352,-460.0,0.00021917,2]
[372423932,1752639046362,-460.0,0.00021917,2]
[372423933,1752639046371,-465.29027243,0.00021917,2]
[372423934,1752639046381,-639.94,0.00021917,2]
[372423935,1752639046391,-460.0,0.00021917,2]
[372423936,1752639046399,-1555.9,0.00021917,2]
[372423937,1752639046409,-460.0,0.00021917,2]
[372423938,1752639046418,-460.0,0.00021917,2]
[372423939,1752639046427,-442.93859424,0.00021917,2]
[372423940,1752639046461,-8542.07,0.00021916,2]
[372423941,1752639046471,-17.06140576,0.00021917,2]
[372423942,1752639046481,-460.0,0.00021917,2]
[372423943,1752639046491,-460.0,0.00021917,2]
[372423944,1752639046500,-462.54790192,0.00021917,2]
[372423945,1752639046511,-763.63,0.00021917,2]
[372423946,1752639046525,-464.64328569,0.00021917,2]
[372423947,1752639046534,-522.09,0.00021917,2]
[372423948,1752639046544,-619.42,0.00021917,2]
[372423949,1752639046553,-1494.70756181,0.00021917,2]
[372423950,1752639046566,-630.21210057,0.00021917,2]
[372423951,1752639046592,-1281.47839881,0.00021917,2]
[372423952,1752639046603,-490.73193655,0.00021917,2]
[372423953,1752639046707,-3416.95729947,0.00021917,2]
[372423954,1752639046741,-13287.48423658,0.00021917,2]
[372423961,1752639068609,-634.98,0.00021917,5]
[372423962,1752639075601,197.577643,0.00021917,8]
[372423963,1752639094115,9178.442357,0.0002,7]
[372423966,1752639156227,156.65,0.00013699,2]
[372423975,1752639508827,1248.0,0.0002122,90]
[372424050,1752640232101,-151.0,0.00018756,2]
[372424051,1752640232111,-151.0,0.00018758,2]
[372424052,1752640232120,-151.0,0.00018759,2]
[372424053,1752640232130,-165.41646928,0.00019013,2]
[372424054,1752640232139,-151.0,0.00019178,2]
[372424055,1752640232148,-159.00044234,0.00019726,2]
[372424056,1752640232158,-586.63308837,0.00019999,2]
[372424057,1752640232169,-338.88889052,0.00019999,2]
[372424058,1752640232215,-274.47802111,0.00019999,2]
[372424059,1752640232225,-300.0,0.00019999,2]
[372424060,1752640232234,-839.976508,0.0002,7]
[372424061,1752640232421,-2085.03852722,0.0002,7]
[372424062,1752640232432,-291.13639838,0.0002,7]
[372424063,1752640232456,-741.13583841,0.0002,7]
[372424244,1752640238077,-151.0,0.00018757,2]
[372424245,1752640238087,-67691.43134149,0.0002,7]
[372424246,1752640238096,-210.72748344,0.0002,7]
[372424247,1752640238105,-447.87393831,0.0002,7]
[372424248,1752640238115,-6114.82769586,0.000201,2]
[372424249,1752640238124,-165.17,0.00020335,2]
[372424250,1752640238133,-433.14,0.00020395,2]
[372424251,1752640238143,-190.0,0.00020444,7]
[372424252,1752640238152,-531.33,0.00020488,2]
[372424253,1752640238162,-152.0,0.0002054,3]
[372424254,1752640238174,-1000.0,0.0002062,3]
[372424255,1752640238186,-1000.0,0.00020707,2]
[372424256,1752640238197,-3433.75,0.00020773,2]
[372424257,1752640238206,-312.48,0.00020788,2]
[372424258,1752640238217,-464.5,0.00020841,2]
[372424259,1752640238227,-3508.39596873,0.000209,4]
[372424260,1752640238237,-207.4,0.00020938,2]
[372424261,1752640238247,-500.0,0.00020938,2]
[372424262,1752640238256,-500.0,0.00020938,2]
[372424263,1752640238266,-251.79183366,0.00020938,2]
[372424264,1752640238276,-22640.86,0.00020951,2]
[372424265,1752640238285,-1175.0,0.00021,2]
[372424266,1752640238295,-9347.0,0.00021,2]
[372424268,1752640238304,-515.0,0.00021003,2]
[372424270,1752640238314,-3508.39596868,0.00021003,4]
[372424272,1752640238323,-373.12,0.00021041,2]
[372424273,1752640238333,-3508.39596868,0.00021107,4]
[372424274,1752640238344,-152.0,0.0002113,4]
[372424275,1752640238354,-3508.39596868,0.0002121,4]
[372424276,1752640238364,-3508.39596868,0.00021314,5]
[372424277,1752640238373,-3508.39596868,0.00021417,5]
[372424278,1752640238383,-936.79,0.00021479,2]
[372424279,1752640238393,-169.52,0.00021479,2]
[372424280,1752640238402,-5511.0,0.000215,3]
[372424281,1752640238411,-3508.39596868,0.00021521,5]
[372424282,1752640238421,-568.78,0.00021562,2]
[372424283,1752640238430,-164.648036,0.00021612,8]
[372424284,1752640238440,-3508.39596868,0.00021624,5]
[372424285,1752640238449,-4181.155,0.00021631,2]
[372424286,1752640238458,-4705.195,0.00021631,2]
[372424287,1752640238467,-610.72263485,0.00021716,2]
[372424288,1752640238480,-152.0,0.00021719,5]
[372424289,1752640238491,-3508.39596868,0.00021728,5]
[372424290,1752640238501,-610.72263476,0.00021742,2]
[372424291,1752640238512,-610.72263476,0.00021769,2]
[372424293,1752640238521,-610.72263476,0.00021795,2]
[372424295,1752640238531,-2618.43688158,0.00021816,2]
[372424297,1752640238541,-76892.951,0.00021817,2]
[372424299,1752640238550,-1000.0,0.00021817,2]
[372424301,1752640238559,-1922.6277,0.00021817,2]
[372424303,1752640238568,-183.32432838,0.00021817,2]
[372424305,1752640238578,-177.64336511,0.00021817,2]
[372424307,1752640238587,-158.96115386,0.00021817,2]
[372424309,1752640238596,-610.72263476,0.00021822,2]
[372424311,1752640238606,-312.48,0.00021828,2]
[372424313,1752640238615,-3508.39596868,0.00021831,6]
[372424315,1752640238625,-210.72748344,0.00021835,2]
[372424317,1752640238634,-447.87393831,0.00021835,2]
[372424319,1752640238643,-838.7287696,0.00021835,2]
[372424321,1752640238653,-610.72263476,0.00021848,2]
[372424323,1752640238663,-610.72263476,0.00021875,2]
[372424325,1752640238672,-3200.0,0.000219,2]
[372424327,1752640238682,-1064.43,0.000219,2]
[372424329,1752640238691,-1384.64,0.000219,2]
[372424331,1752640238700,-378.0,0.000219,2]
[372424333,1752640238710,-391.0,0.000219,2]
[372424335,1752640238719,-610.72263476,0.00021901,2]
[372424337,1752640238728,-224.01345879,0.00021907,2]
[372424339,1752640238737,-8186.15,0.00021916,2]
[372424341,1752640238747,-11143.15746357,0.00021916,2]
[372424343,1752640238757,-221.56735369,0.00021917,2]
[372424345,1752640238767,-11449.55846621,0.00021917,2]
[372424347,1752640238776,-500.0,0.00021917,2]
[372424349,1752640238785,-151.0,0.00021917,2]
[372424351,1752640238795,-151.0,0.00021917,2]
[372424353,1752640238806,-151.0,0.00021917,2]
[372424355,1752640238815,-209.803661,0.00021917,2]
[372424357,1752640238824,-151.0,0.00021917,2]
[372424359,1752640238833,-151.0,0.00021917,2]
[372424361,1752640238843,-151.0,0.00021917,2]
[372424363,1752640238853,-151.0,0.00021917,2]
[372424365,1752640238863,-151.0,0.00021917,2]
[372424367,1752640238872,-151.0,0.00021917,2]
[372424369,1752640238882,-460.0,0.00021917,2]
[372424371,1752640238891,-460.0,0.00021917,2]
[372424373,1752640238900,-609.07,0.00021917,2]
[372424375,1752640238909,-609.07,0.00021917,2]
[372424378,1752640238928,-460.0,0.00021917,2]
[372424381,1752640238939,-676.33,0.00021917,2]
[372424383,1752640238949,-460.0,0.00021917,2]
[372424385,1752640238959,-460.0,0.00021917,2]
[372424387,1752640238969,-485.72,0.00021917,2]
[372424389,1752640238979,-460.0,0.00021917,2]
[372424391,1752640238991,-460.0,0.00021917,2]
[372424393,1752640239001,-460.0,0.00021917,2]
[372424395,1752640239014,-463.25725605,0.00021917,2]
[372424397,1752640239026,-786.73,0.00021917,2]
[372424399,1752640239036,-564.81,0.00021917,2]
[372424401,1752640239045,-499.15,0.00021917,2]
[372424403,1752640239056,-151.0,0.00021917,2]
[372424405,1752640239065,-460.0,0.00021917,2]
[372424407,1752640239075,-460.0,0.00021917,2]
[372424410,1752640239086,-460.0,0.00021917,2]
[372424412,1752640239095,-548.54,0.00021917,2]
[372424414,1752640239106,-460.0,0.00021917,2]
[372424416,1752640239115,-460.0,0.00021917,2]
[372424418,1752640239125,-460.0,0.00021917,2]
[372424420,1752640239136,-460.0,0.00021917,2]
[372424422,1752640239157,-460.0,0.00021917,2]
[372424424,1752640239167,-1725.33,0.00021917,2]
[372424425,1752640239177,-152.517987,0.00021917,2]
[372424426,1752640239187,-460.0,0.00021917,2]
[372424427,1752640239197,-460.0,0.00021917,2]
[372424428,1752640239207,-619.08,0.00021917,2]
[372424429,1752640239217,-460.0,0.00021917,2]
[372424430,1752640239227,-460.0,0.00021917,2]
[372424431,1752640239237,-478.2,0.00021917,2]
[372424485,1752640239743,-460.0,0.00021917,2]
[372424487,1752640239760,-856.95,0.00021917,2]
[372424489,1752640239769,-460.0,0.00021917,2]
[372424491,1752640239780,-460.0,0.00021917,2]
[372424493,1752640239789,-494.00736175,0.00021917,2]
[372424495,1752640239799,-506.74815511,0.00021917,2]
[372424497,1752640239809,-460.0,0.00021917,2]
[372424499,1752640239818,-151.0,0.00021917,2]
[372424501,1752640239827,-151.0,0.00021917,2]
[372424503,1752640239836,-151.0,0.00021917,2]
[372424505,1752640239846,-151.0,0.00021917,2]
[372424507,1752640239855,-151.0,0.00021917,2]
[372424509,1752640239865,-151.0,0.00021917,2]
[372424512,1752640239875,-151.0,0.00021917,2]
[372424514,1752640239884,-151.0,0.00021917,2]
[372424515,1752640239894,-151.0,0.00021917,2]
[372424517,1752640239905,-151.0,0.00021917,2]
[372424519,1752640239915,-460.0,0.00021917,2]
[372424522,1752640239925,-460.0,0.00021917,2]
[372424524,1752640239936,-500.0,0.00021917,2]
[372424526,1752640239945,-491.53818594,0.00021917,2]
[372424528,1752640239955,-1149.99,0.00021917,2]
[372424530,1752640239966,-460.0,0.00021917,2]
[372424532,1752640239975,-324.40404023,0.00021917,2]
[372424534,1752640239985,-460.0,0.00021917,2]
[372424536,1752640239998,-151.0,0.00021917,2]
[372424538,1752640240007,-533.56711352,0.00021917,2]
[372424540,1752640240016,-503.90124771,0.00021917,2]
[372424542,1752640240026,-151.42354,0.00021917,2]
[372424544,1752640240037,-194.21386594,0.00021917,2]
[372424546,1752640240047,-460.0,0.00021917,2]
[372424548,1752640240056,-460.0,0.00021917,2]
[372424550,1752640240069,-461.71486257,0.00021917,2]